[Event "Live Chess"]
[Site "Chess.com"]
[Date "2023.05.21"]
[Round "-"]
[White "DoYouLikeCurry"]
[Black "maxmlynek"]
[Result "0-1"]
[WhiteElo "1392"]
[BlackElo "1911"]
[TimeControl "300"]
[EndTime "3:09:10 PDT"]
[Termination "maxmlynek won on time"]

1. e4 {[%clk 0:04:56.3]} 1... c6 {[%clk 0:04:58.9]} 2. d4 {[%clk 0:04:54.7]}
2... d5 {[%clk 0:04:58.8]} 3. Nc3 {[%clk 0:04:54]} 3... dxe4 {[%clk 0:04:57.1]}
4. Nxe4 {[%clk 0:04:53.7]} 4... Bf5 {[%clk 0:04:56.6]} 5. Ng3 {[%clk 0:04:52.9]}
5... Bg6 {[%clk 0:04:56.1]} 6. h4 {[%clk 0:04:52.3]} 6... h6 {[%clk 0:04:55.1]}
7. Nf3 {[%clk 0:04:51.1]} 7... Nf6 {[%clk 0:04:54]} 8. Bf4 {[%clk 0:04:45.6]}
8... Nbd7 {[%clk 0:04:52.6]} 9. Bd3 {[%clk 0:04:34.3]} 9... Bxd3 {[%clk
0:04:50.7]} 10. Qxd3 {[%clk 0:04:34.2]} 10... e6 {[%clk 0:04:50.3]} 11. O-O-O
{[%clk 0:04:31.3]} 11... a5 {[%clk 0:04:49]} 12. Kb1 {[%clk 0:04:28.1]} 12... a4
{[%clk 0:04:48.2]} 13. Ne4 {[%clk 0:04:25.2]} 13... Nxe4 {[%clk 0:04:45.3]} 14.
Qxe4 {[%clk 0:04:20]} 14... Nf6 {[%clk 0:04:44.4]} 15. Qd3 {[%clk 0:03:25.2]}
15... Qb6 {[%clk 0:04:37.8]} 16. a3 {[%clk 0:03:21.8]} 16... Nd5 {[%clk
0:04:35.9]} 17. Be5 {[%clk 0:03:14.1]} 17... O-O-O {[%clk 0:04:32.9]} 18. Rhe1
{[%clk 0:03:05.1]} 18... Be7 {[%clk 0:04:25.2]} 19. Bxg7 {[%clk 0:03:00.3]}
19... Rhg8 {[%clk 0:04:23.5]} 20. Be5 {[%clk 0:02:57]} 20... Rxg2 {[%clk
0:04:21.4]} 21. Bg3 {[%clk 0:02:52.3]} 21... Bd6 {[%clk 0:04:11]} 22. Bxd6
{[%clk 0:02:46.8]} 22... Rxd6 {[%clk 0:04:09.5]} 23. Qh7 {[%clk 0:02:43]} 23...
Rxf2 {[%clk 0:03:59.3]} 24. Qg8+ {[%clk 0:02:39.5]} 24... Rd8 {[%clk 0:03:58.1]}
25. Qxf7 {[%clk 0:02:35]} 25... Nc3+ {[%clk 0:03:56.6]} 26. Kc1 {[%clk
0:02:23.9]} 26... Nxd1 {[%clk 0:03:47.7]} 27. Rxd1 {[%clk 0:02:21.4]} 27... Kb8
{[%clk 0:03:44.5]} 28. Qh5 {[%clk 0:02:12.5]} 28... Qa6 {[%clk 0:03:34.6]} 29.
Ne5 {[%clk 0:02:07.8]} 29... Qe2 {[%clk 0:03:29.3]} 30. Qxe2 {[%clk 0:02:04.2]}
30... Rxe2 {[%clk 0:03:29.2]} 31. Ng6 {[%clk 0:01:57.8]} 31... Re4 {[%clk
0:03:26.3]} 32. c3 {[%clk 0:01:54.2]} 32... Rg4 {[%clk 0:03:23.8]} 33. h5 {[%clk
0:01:51.4]} 33... Rg5 {[%clk 0:03:22.2]} 34. Rh1 {[%clk 0:01:47.8]} 34... Rdd5
{[%clk 0:03:21.2]} 35. Nf4 {[%clk 0:01:44]} 35... Rd6 {[%clk 0:03:16.4]} 36. Re1
{[%clk 0:01:39.2]} 36... c5 {[%clk 0:03:07.9]} 37. Nxe6 {[%clk 0:01:35.5]} 37...
Rxh5 {[%clk 0:03:03.8]} 38. Nxc5 {[%clk 0:01:32.7]} 38... b6 {[%clk 0:03:00]}
39. Nxa4 {[%clk 0:01:29.7]} 39... Ra5 {[%clk 0:02:55.8]} 40. Re8+ {[%clk
0:01:23.5]} 40... Kc7 {[%clk 0:02:53.5]} 41. b3 {[%clk 0:01:18.2]} 41... Rh5
{[%clk 0:02:45.3]} 42. Kc2 {[%clk 0:01:08.9]} 42... Rh2+ {[%clk 0:02:41.5]} 43.
Kd3 {[%clk 0:01:05.5]} 43... h5 {[%clk 0:02:39.2]} 44. Rh8 {[%clk 0:01:01.6]}
44... h4 {[%clk 0:02:38.3]} 45. Kc4 {[%clk 0:00:56.6]} 45... h3 {[%clk
0:02:32.1]} 46. Kb5 {[%clk 0:00:47.1]} 46... Rh1 {[%clk 0:02:24.2]} 47. Ka6
{[%clk 0:00:41.3]} 47... h2 {[%clk 0:02:17.5]} 48. b4 {[%clk 0:00:38]} 48... Ra1
{[%clk 0:02:13.2]} 49. Rxh2 {[%clk 0:00:33.8]} 49... Rxa3 {[%clk 0:02:12.3]} 50.
Kb5 {[%clk 0:00:31.6]} 50... Rg6 {[%clk 0:02:01.8]} 51. d5 {[%clk 0:00:26.3]}
51... Rd6 {[%clk 0:01:53.8]} 52. Rd2 {[%clk 0:00:24.7]} 52... Rb3 {[%clk
0:01:40.1]} 53. c4 {[%clk 0:00:21.8]} 53... Kb7 {[%clk 0:01:37.6]} 54. c5 {[%clk
0:00:19.4]} 54... bxc5 {[%clk 0:01:36.9]} 55. Nxc5+ {[%clk 0:00:16.2]} 55... Kc7
{[%clk 0:01:33.6]} 56. Nxb3 {[%clk 0:00:16.1]} 56... Rb6+ {[%clk 0:01:32.8]} 57.
Kc5 {[%clk 0:00:12.7]} 57... Rh6 {[%clk 0:01:28.7]} 58. b5 {[%clk 0:00:10.7]}
58... Rh3 {[%clk 0:01:24.8]} 59. d6+ {[%clk 0:00:09.5]} 59... Kd7 {[%clk
0:01:23.7]} 60. Na5 {[%clk 0:00:07.7]} 60... Rc3+ {[%clk 0:01:20.4]} 61. Kb6
{[%clk 0:00:06.3]} 61... Ra3 {[%clk 0:01:17.7]} 62. Nc4 {[%clk 0:00:05.4]} 62...
Rc3 {[%clk 0:01:14.3]} 63. Kb7 {[%clk 0:00:04.8]} 63... Rxc4 {[%clk 0:01:13.3]}
64. b6 {[%clk 0:00:04]} 64... Rb4 {[%clk 0:01:11.4]} 65. Ka7 {[%clk 0:00:03.6]}
65... Kc6 {[%clk 0:01:09.5]} 66. d7 {[%clk 0:00:02.1]} 66... Ra4+ {[%clk
0:00:59.1]} 67. Kb8 {[%clk 0:00:00.8]} 67... Rg4 {[%clk 0:00:47.7]} 68. d8=Q
{[%clk 0:00:00.7]} 68... Kb5 {[%clk 0:00:43.4]} 69. Qc8 {[%clk 0:00:00.6]} 69...
Rg6 {[%clk 0:00:33.1]} 0-1

[Event "Live Chess"]
[Site "Chess.com"]
[Date "2023.05.21"]
[Round "-"]
[White "YrrriKharkiv"]
[Black "RichardABates"]
[Result "0-1"]
[WhiteElo "2063"]
[BlackElo "2097"]
[TimeControl "300"]
[EndTime "3:09:11 PDT"]
[Termination "RichardABates won on time"]

1. d4 {[%clk 0:04:55.8]} 1... Nf6 {[%clk 0:04:58.5]} 2. Bg5 {[%clk 0:04:54.7]}
2... Ne4 {[%clk 0:04:56.9]} 3. Bh4 {[%clk 0:04:53.5]} 3... c5 {[%clk 0:04:54.5]}
4. f3 {[%clk 0:04:51.2]} 4... g5 {[%clk 0:04:52.4]} 5. fxe4 {[%clk 0:04:49.5]}
5... gxh4 {[%clk 0:04:51.3]} 6. Nf3 {[%clk 0:04:47.2]} 6... cxd4 {[%clk
0:04:45.3]} 7. Qxd4 {[%clk 0:04:43.7]} 7... Rg8 {[%clk 0:04:43.3]} 8. Nc3 {[%clk
0:04:35.5]} 8... Nc6 {[%clk 0:04:39.9]} 9. Qd2 {[%clk 0:04:20.2]} 9... e6 {[%clk
0:04:27.8]} 10. e3 {[%clk 0:04:00.1]} 10... Qb6 {[%clk 0:04:19.5]} 11. O-O-O
{[%clk 0:03:49]} 11... Bh6 {[%clk 0:04:10.3]} 12. Re1 {[%clk 0:03:47.2]} 12...
Bg7 {[%clk 0:04:04.2]} 13. Nxh4 {[%clk 0:03:28.9]} 13... Nb4 {[%clk 0:03:57.7]}
14. Kb1 {[%clk 0:03:14.5]} 14... d5 {[%clk 0:03:39.5]} 15. exd5 {[%clk
0:03:03.5]} 15... Nxd5 {[%clk 0:03:38.1]} 16. Kc1 {[%clk 0:02:42.6]} 16... Nxc3
{[%clk 0:03:28.2]} 17. bxc3 {[%clk 0:02:41.2]} 17... Qa5 {[%clk 0:03:26.4]} 18.
Qd6 {[%clk 0:01:49]} 18... Bxc3 {[%clk 0:03:06.8]} 19. Rd1 {[%clk 0:01:36.5]}
19... Be5 {[%clk 0:03:04]} 20. Qd3 {[%clk 0:01:26.4]} 20... Rg4 {[%clk
0:02:49.4]} 21. Nf3 {[%clk 0:01:20.3]} 21... Bc3 {[%clk 0:02:42.2]} 22. Qb5+
{[%clk 0:01:15.5]} 22... Qxb5 {[%clk 0:02:40.5]} 23. Bxb5+ {[%clk 0:01:14.5]}
23... Ke7 {[%clk 0:02:39.8]} 24. g3 {[%clk 0:01:09.1]} 24... Rb4 {[%clk
0:02:34.3]} 25. Be2 {[%clk 0:00:57.8]} 25... Bd7 {[%clk 0:02:32]} 26. Rd3 {[%clk
0:00:55.2]} 26... Rc8 {[%clk 0:02:29.7]} 27. Rhd1 {[%clk 0:00:51.9]} 27... Ba4
{[%clk 0:02:26.1]} 28. Rxc3 {[%clk 0:00:40]} 28... Rxc3 {[%clk 0:02:24.1]} 29.
Bd3 {[%clk 0:00:39.3]} 29... f5 {[%clk 0:02:12.6]} 30. Nd4 {[%clk 0:00:33.5]}
30... Kf6 {[%clk 0:02:11.1]} 31. Rf1 {[%clk 0:00:30.7]} 31... Bd7 {[%clk
0:02:04.1]} 32. g4 {[%clk 0:00:28.5]} 32... Rc5 {[%clk 0:01:59.3]} 33. gxf5
{[%clk 0:00:26.8]} 33... exf5 {[%clk 0:01:57.8]} 34. Nb3 {[%clk 0:00:18.1]}
34... Re5 {[%clk 0:01:55.6]} 35. e4 {[%clk 0:00:15.8]} 35... a5 {[%clk
0:01:49.9]} 36. Nd2 {[%clk 0:00:14.4]} 36... Bb5 {[%clk 0:01:41.4]} 37. exf5
{[%clk 0:00:08.3]} 37... Bxd3 {[%clk 0:01:39.5]} 38. cxd3 {[%clk 0:00:07.9]}
38... Rc5+ {[%clk 0:01:37.9]} 39. Kd1 {[%clk 0:00:05]} 39... Rc6 {[%clk
0:01:32.9]} 40. Ne4+ {[%clk 0:00:04]} 40... Ke5 {[%clk 0:01:28.2]} 41. f6 {[%clk
0:00:03.6]} 41... Rb1+ {[%clk 0:01:26.4]} 42. Ke2 {[%clk 0:00:02.1]} 42... Rc2+
{[%clk 0:01:21.6]} 0-1

[Event "Live Chess"]
[Site "Chess.com"]
[Date "2023.05.21"]
[Round "-"]
[White "HoarseyHorsey"]
[Black "worldchessleaguelive"]
[Result "1-0"]
[WhiteElo "1445"]
[BlackElo "1366"]
[TimeControl "300"]
[EndTime "3:09:33 PDT"]
[Termination "HoarseyHorsey won on time"]

1. d4 {[%clk 0:04:57.5]} 1... d5 {[%clk 0:04:58.8]} 2. c4 {[%clk 0:04:56.8]}
2... dxc4 {[%clk 0:04:57.4]} 3. e4 {[%clk 0:04:56.1]} 3... e6 {[%clk 0:04:52.7]}
4. Bxc4 {[%clk 0:04:54.2]} 4... Nf6 {[%clk 0:04:51.6]} 5. Nc3 {[%clk 0:04:52]}
5... Be7 {[%clk 0:04:49.3]} 6. Nf3 {[%clk 0:04:49.4]} 6... O-O {[%clk
0:04:48.2]} 7. O-O {[%clk 0:04:45.1]} 7... a6 {[%clk 0:04:47.2]} 8. Re1 {[%clk
0:04:37.4]} 8... b5 {[%clk 0:04:46.1]} 9. Bb3 {[%clk 0:04:36.8]} 9... Bb7 {[%clk
0:04:44.7]} 10. e5 {[%clk 0:04:32.4]} 10... Nd5 {[%clk 0:04:41.7]} 11. Bd2
{[%clk 0:04:19.7]} 11... Nxc3 {[%clk 0:04:30.3]} 12. Bxc3 {[%clk 0:04:15.9]}
12... c5 {[%clk 0:04:29.2]} 13. dxc5 {[%clk 0:04:12.7]} 13... Bxc5 {[%clk
0:04:21.4]} 14. Nd4 {[%clk 0:04:10.1]} 14... Nc6 {[%clk 0:04:12.5]} 15. Nxc6
{[%clk 0:04:07.9]} 15... Bxc6 {[%clk 0:04:10.7]} 16. Rc1 {[%clk 0:03:59.6]}
16... Qxd1 {[%clk 0:04:03.3]} 17. Rexd1 {[%clk 0:03:56.2]} 17... Rfd8 {[%clk
0:04:02.1]} 18. Be1 {[%clk 0:03:47]} 18... Rxd1 {[%clk 0:03:50.8]} 19. Bxd1
{[%clk 0:03:41.7]} 19... Rd8 {[%clk 0:03:45.9]} 20. Bg4 {[%clk 0:03:15.3]} 20...
Rd5 {[%clk 0:03:37.2]} 21. Bc3 {[%clk 0:03:08.2]} 21... Be8 {[%clk 0:03:27.4]}
22. Bf3 {[%clk 0:02:51.1]} 22... Rd8 {[%clk 0:03:15.1]} 23. h3 {[%clk
0:02:42.8]} 23... Bd4 {[%clk 0:03:11.1]} 24. Bxd4 {[%clk 0:02:39.8]} 24... Rxd4
{[%clk 0:03:08.6]} 25. Rc8 {[%clk 0:02:38.6]} 25... Kf8 {[%clk 0:03:00.5]} 26.
Bc6 {[%clk 0:02:35.1]} 26... Rd1+ {[%clk 0:02:55.3]} 27. Kh2 {[%clk 0:02:33.7]}
27... f6 {[%clk 0:02:46.4]} 28. exf6 {[%clk 0:02:25.9]} 28... gxf6 {[%clk
0:02:44.3]} 29. Bxe8 {[%clk 0:02:25.1]} 29... Ke7 {[%clk 0:02:42.1]} 30. Bh5
{[%clk 0:02:17.6]} 30... Rd2 {[%clk 0:02:40.4]} 31. Rc7+ {[%clk 0:02:13]} 31...
Kd6 {[%clk 0:02:38]} 32. Rxh7 {[%clk 0:02:10.2]} 32... Rxb2 {[%clk 0:02:36.4]}
33. f3 {[%clk 0:02:01.4]} 33... Rxa2 {[%clk 0:02:32.6]} 34. Rh6 {[%clk
0:02:00.7]} 34... b4 {[%clk 0:02:27.2]} 35. Rxf6 {[%clk 0:01:58.3]} 35... b3
{[%clk 0:02:24.2]} 36. Bf7 {[%clk 0:01:57.3]} 36... b2 {[%clk 0:02:19.7]} 37.
Bxe6 {[%clk 0:01:56.1]} 37... Ra1 {[%clk 0:01:59.2]} 38. Bf5+ {[%clk 0:01:48.1]}
38... Ke5 {[%clk 0:01:57.6]} 39. Rb6 {[%clk 0:01:37.6]} 39... Kxf5 {[%clk
0:01:46.6]} 40. Rxb2 {[%clk 0:01:36.5]} 40... a5 {[%clk 0:01:35.1]} 41. h4
{[%clk 0:01:27.9]} 41... a4 {[%clk 0:01:33.4]} 42. g4+ {[%clk 0:01:20.8]} 42...
Kf4 {[%clk 0:01:31.9]} 43. h5 {[%clk 0:01:19.9]} 43... Kxf3 {[%clk 0:01:27.6]}
44. g5 {[%clk 0:01:17.8]} 44... Re1 {[%clk 0:01:18.4]} 45. g6 {[%clk 0:01:03.8]}
45... Re8 {[%clk 0:01:03.5]} 46. Kh3 {[%clk 0:00:49.8]} 46... Re1 {[%clk
0:00:57.5]} 47. Kh4 {[%clk 0:00:44]} 47... Rh1+ {[%clk 0:00:52.5]} 48. Kg5
{[%clk 0:00:42.6]} 48... Rg1+ {[%clk 0:00:35.6]} 49. Kh6 {[%clk 0:00:41.2]}
49... Rg4 {[%clk 0:00:22.8]} 50. g7 {[%clk 0:00:36.3]} 50... Kg3 {[%clk
0:00:13.7]} 51. Kh7 {[%clk 0:00:31.6]} 51... Kh4 {[%clk 0:00:06]} 52. Rh2+
{[%clk 0:00:22.3]} 52... Kg3 {[%clk 0:00:02.7]} 53. Ra2 {[%clk 0:00:14.2]} 53...
Kh4 {[%clk 0:00:00.6]} 54. h6 {[%clk 0:00:11.9]} 1-0

[Event "Live Chess"]
[Site "Chess.com"]
[Date "2023.05.21"]
[Round "-"]
[White "sebmoran1"]
[Black "WelshTiger"]
[Result "0-1"]
[WhiteElo "1380"]
[BlackElo "2348"]
[TimeControl "300"]
[EndTime "3:09:34 PDT"]
[Termination "WelshTiger won by checkmate"]

1. d4 {[%clk 0:04:57.2]} 1... d5 {[%clk 0:04:58.7]} 2. c4 {[%clk 0:04:55.6]}
2... e6 {[%clk 0:04:58.2]} 3. Nc3 {[%clk 0:04:54]} 3... c5 {[%clk 0:04:57.2]} 4.
Nf3 {[%clk 0:04:51.6]} 4... Nc6 {[%clk 0:04:56]} 5. cxd5 {[%clk 0:04:46.9]} 5...
exd5 {[%clk 0:04:54.9]} 6. dxc5 {[%clk 0:04:45.7]} 6... Nf6 {[%clk 0:04:52.8]}
7. g3 {[%clk 0:04:43.7]} 7... Bxc5 {[%clk 0:04:49.3]} 8. Bg2 {[%clk 0:04:42]}
8... O-O {[%clk 0:04:47.8]} 9. O-O {[%clk 0:04:40.6]} 9... a6 {[%clk 0:04:40.2]}
10. Bg5 {[%clk 0:04:38.4]} 10... d4 {[%clk 0:04:38.6]} 11. Ne4 {[%clk
0:04:34.3]} 11... Be7 {[%clk 0:04:37.8]} 12. Nxf6+ {[%clk 0:04:31.6]} 12... Bxf6
{[%clk 0:04:37.1]} 13. Bxf6 {[%clk 0:04:28.1]} 13... Qxf6 {[%clk 0:04:37]} 14.
Nd2 {[%clk 0:04:24.7]} 14... Bf5 {[%clk 0:04:29.6]} 15. Nb3 {[%clk 0:04:22.4]}
15... Rad8 {[%clk 0:04:21.7]} 16. Nc5 {[%clk 0:04:13.9]} 16... Qe7 {[%clk
0:04:12.6]} 17. Nb3 {[%clk 0:04:08.3]} 17... Be4 {[%clk 0:04:06.3]} 18. Bxe4
{[%clk 0:04:02.4]} 18... Qxe4 {[%clk 0:04:05.6]} 19. Qd3 {[%clk 0:04:01.3]}
19... Qe7 {[%clk 0:03:57.5]} 20. Rfd1 {[%clk 0:03:56.6]} 20... Rfe8 {[%clk
0:03:52.3]} 21. Kf1 {[%clk 0:03:45]} 21... Qd6 {[%clk 0:03:33.2]} 22. e3 {[%clk
0:03:34.7]} 22... Qd5 {[%clk 0:03:27.9]} 23. Kg1 {[%clk 0:03:23.2]} 23... Qh5
{[%clk 0:03:18]} 24. exd4 {[%clk 0:03:17.6]} 24... Ne5 {[%clk 0:03:15.9]} 25.
Qc3 {[%clk 0:02:56.5]} 25... Nf3+ {[%clk 0:03:06.2]} 26. Kg2 {[%clk 0:02:51.5]}
26... Ng5 {[%clk 0:03:05.6]} 27. h4 {[%clk 0:02:47.3]} 27... Ne4 {[%clk
0:03:03.9]} 28. Qf3 {[%clk 0:02:43.1]} 28... Qb5 {[%clk 0:02:54.8]} 29. Re1
{[%clk 0:02:34.3]} 29... f5 {[%clk 0:02:52.9]} 30. g4 {[%clk 0:02:19.4]} 30...
fxg4 {[%clk 0:02:21.4]} 31. Qxg4 {[%clk 0:02:12.4]} 31... Nf6 {[%clk 0:02:20.5]}
32. Rxe8+ {[%clk 0:02:05.1]} 32... Rxe8 {[%clk 0:02:19.5]} 33. Qf4 {[%clk
0:02:00]} 33... Nh5 {[%clk 0:02:12.4]} 34. Qg4 {[%clk 0:01:46.3]} 34... Qd5+
{[%clk 0:02:07.9]} 35. Qf3 {[%clk 0:01:39.9]} 35... Nf4+ {[%clk 0:01:55.8]} 36.
Kg3 {[%clk 0:01:37.9]} 36... Nh5+ {[%clk 0:01:54.8]} 37. Kg2 {[%clk 0:01:34.9]}
37... Qb5 {[%clk 0:01:45.4]} 38. Nc5 {[%clk 0:01:25]} 38... Qxb2 {[%clk
0:01:35.1]} 39. Qxh5 {[%clk 0:01:14.9]} 39... Rf8 {[%clk 0:01:30.8]} 40. Rf1
{[%clk 0:01:02.2]} 40... Qxd4 {[%clk 0:01:28.8]} 41. Rd1 {[%clk 0:00:30.5]}
41... Qf6 {[%clk 0:01:15.2]} 42. Qd5+ {[%clk 0:00:27]} 42... Kh8 {[%clk
0:01:14.4]} 43. Nd7 {[%clk 0:00:24.4]} 43... Qxf2+ {[%clk 0:01:13.3]} 44. Kh3
{[%clk 0:00:21.4]} 44... Rf3+ {[%clk 0:01:11.4]} 45. Kg4 {[%clk 0:00:19.4]}
45... Rg3+ {[%clk 0:01:10.5]} 46. Kh5 {[%clk 0:00:17.8]} 46... g6+ {[%clk
0:01:07.1]} 47. Kh6 {[%clk 0:00:15.4]} 47... Qf4+ {[%clk 0:01:06.4]} 48. Qg5
{[%clk 0:00:10.5]} 48... Rxg5 {[%clk 0:01:04.1]} 49. hxg5 {[%clk 0:00:10.4]}
49... Qh4# {[%clk 0:01:03]} 0-1

[Event "Live Chess"]
[Site "Chess.com"]
[Date "2023.05.21"]
[Round "-"]
[White "PetorPrydatko"]
[Black "domrobson"]
[Result "0-1"]
[WhiteElo "354"]
[BlackElo "1715"]
[TimeControl "300"]
[EndTime "3:10:05 PDT"]
[Termination "domrobson won by checkmate"]

1. d4 {[%clk 0:04:55.2]} 1... Nf6 {[%clk 0:04:58.4]} 2. c3 {[%clk 0:04:52.9]}
2... d5 {[%clk 0:04:55.8]} 3. e4 {[%clk 0:04:47.7]} 3... Nxe4 {[%clk 0:04:52.7]}
4. f3 {[%clk 0:04:45.5]} 4... Nf6 {[%clk 0:04:51.2]} 5. Bb5+ {[%clk 0:04:32.5]}
5... c6 {[%clk 0:04:48.9]} 6. Ba4 {[%clk 0:04:28.7]} 6... b5 {[%clk 0:04:47.6]}
7. Bb3 {[%clk 0:04:16.8]} 7... Bf5 {[%clk 0:04:44.9]} 8. Ne2 {[%clk 0:04:05.1]}
8... e6 {[%clk 0:04:43]} 9. O-O {[%clk 0:04:03.5]} 9... c5 {[%clk 0:04:38.8]}
10. Bf4 {[%clk 0:03:50.9]} 10... Nc6 {[%clk 0:04:36.9]} 11. Ng3 {[%clk
0:03:42.5]} 11... Bg6 {[%clk 0:04:35.2]} 12. Nd2 {[%clk 0:03:36.1]} 12... cxd4
{[%clk 0:04:33.7]} 13. cxd4 {[%clk 0:03:34.4]} 13... Nxd4 {[%clk 0:04:32.8]} 14.
Nge4 {[%clk 0:03:24.5]} 14... Nxe4 {[%clk 0:04:28.1]} 15. fxe4 {[%clk
0:03:22.9]} 15... Bc5 {[%clk 0:04:23.9]} 16. exd5 {[%clk 0:03:19.7]} 16... Nxb3+
{[%clk 0:04:21.4]} 17. Kh1 {[%clk 0:03:00.9]} 17... Nxa1 {[%clk 0:04:20.1]} 18.
Qxa1 {[%clk 0:02:57.4]} 18... O-O {[%clk 0:04:17.1]} 19. Nb3 {[%clk 0:02:49]}
19... Qxd5 {[%clk 0:04:12.5]} 20. Rd1 {[%clk 0:02:44.6]} 20... Qf5 {[%clk
0:04:08.4]} 21. Rc1 {[%clk 0:02:40.5]} 21... Qxf4 {[%clk 0:04:06.4]} 22. Rg1
{[%clk 0:02:29.2]} 22... Bxg1 {[%clk 0:04:03.4]} 23. Qxg1 {[%clk 0:02:26.2]}
23... Rac8 {[%clk 0:03:59.6]} 24. g3 {[%clk 0:02:24.8]} 24... Be4+ {[%clk
0:03:57.9]} 25. Qg2 {[%clk 0:02:14.3]} 25... Rc1+ {[%clk 0:03:55.8]} 26. Nxc1
{[%clk 0:02:08.7]} 26... Qxc1# {[%clk 0:03:55.7]} 0-1

[Event "Live Chess"]
[Site "Chess.com"]
[Date "2023.05.21"]
[Round "-"]
[White "Duke_of_Bebington"]
[Black "jagbama"]
[Result "1-0"]
[WhiteElo "1588"]
[BlackElo "1162"]
[TimeControl "300"]
[EndTime "3:10:07 PDT"]
[Termination "Duke_of_Bebington won on time"]

1. e4 {[%clk 0:04:57.3]} 1... e5 {[%clk 0:04:58.9]} 2. Nf3 {[%clk 0:04:56.1]}
2... Nc6 {[%clk 0:04:55.4]} 3. Bc4 {[%clk 0:04:54.1]} 3... Bc5 {[%clk
0:04:53.9]} 4. b4 {[%clk 0:04:52.9]} 4... Bd4 {[%clk 0:04:46.6]} 5. c3 {[%clk
0:04:50.9]} 5... Bb6 {[%clk 0:04:40.7]} 6. b5 {[%clk 0:04:41.1]} 6... Na5 {[%clk
0:04:35.9]} 7. Bb3 {[%clk 0:04:39.9]} 7... Nf6 {[%clk 0:04:21.2]} 8. Nxe5 {[%clk
0:04:34.1]} 8... Nxb3 {[%clk 0:04:16.7]} 9. Qxb3 {[%clk 0:04:31.8]} 9... O-O
{[%clk 0:04:14.7]} 10. d3 {[%clk 0:04:23.2]} 10... d5 {[%clk 0:04:08.7]} 11.
exd5 {[%clk 0:04:11.9]} 11... Re8 {[%clk 0:03:56.8]} 12. d4 {[%clk 0:04:04.6]}
12... Qxd5 {[%clk 0:03:23.1]} 13. Qxd5 {[%clk 0:03:36.8]} 13... Nxd5 {[%clk
0:03:21.7]} 14. O-O {[%clk 0:03:36.2]} 14... Bf5 {[%clk 0:03:08.4]} 15. a4
{[%clk 0:03:32.3]} 15... a5 {[%clk 0:03:01.2]} 16. Bb2 {[%clk 0:03:18.4]} 16...
f6 {[%clk 0:02:38.3]} 17. Nc4 {[%clk 0:03:14.2]} 17... c6 {[%clk 0:02:20.9]} 18.
Nba3 {[%clk 0:03:02.5]} 18... c5 {[%clk 0:02:11.3]} 19. Nd6 {[%clk 0:02:59.7]}
19... Bg6 {[%clk 0:01:46.9]} 20. Nxe8 {[%clk 0:02:57.9]} 20... Rxe8 {[%clk
0:01:45.9]} 21. Rfe1 {[%clk 0:02:46.2]} 21... cxd4 {[%clk 0:01:18.3]} 22. Rxe8+
{[%clk 0:02:42.9]} 22... Bxe8 {[%clk 0:01:16.7]} 23. cxd4 {[%clk 0:02:31.9]}
23... Nf4 {[%clk 0:01:08]} 24. Re1 {[%clk 0:02:19.6]} 24... Bf7 {[%clk
0:01:06.8]} 25. Re3 {[%clk 0:02:13.9]} 25... g5 {[%clk 0:00:59.4]} 26. Nc2
{[%clk 0:02:04.4]} 26... Kg7 {[%clk 0:00:45.7]} 27. Re7 {[%clk 0:01:48.8]} 27...
Kg6 {[%clk 0:00:41.8]} 28. Rxb7 {[%clk 0:01:43.9]} 28... Bd8 {[%clk 0:00:18.9]}
29. Rd7 {[%clk 0:01:35.9]} 29... Bb6 {[%clk 0:00:16.2]} 30. Ne3 {[%clk
0:01:25.9]} 30... Bb3 {[%clk 0:00:12.8]} 31. Rd6 {[%clk 0:01:19.1]} 31... Bc7
{[%clk 0:00:09.4]} 32. Rc6 {[%clk 0:01:14.5]} 32... Bd8 {[%clk 0:00:04.6]} 33.
b6 {[%clk 0:01:05.5]} 33... Bxb6 {[%clk 0:00:00.6]} 34. Rxb6 {[%clk 0:01:04.3]}
1-0

[Event "Live Chess"]
[Site "Chess.com"]
[Date "2023.05.21"]
[Round "-"]
[White "Shepherds_Pie"]
[Black "Purple1szed"]
[Result "1-0"]
[WhiteElo "1951"]
[BlackElo "1823"]
[TimeControl "300"]
[EndTime "3:10:12 PDT"]
[Termination "Shepherds_Pie won by resignation"]

1. c4 {[%clk 0:04:55.9]} 1... e5 {[%clk 0:04:58.9]} 2. Nc3 {[%clk 0:04:54.7]}
2... Nf6 {[%clk 0:04:57.5]} 3. Nf3 {[%clk 0:04:53.6]} 3... Nc6 {[%clk
0:04:53.8]} 4. e3 {[%clk 0:04:52.5]} 4... e4 {[%clk 0:04:51]} 5. Ng5 {[%clk
0:04:51.1]} 5... b5 {[%clk 0:04:04.3]} 6. cxb5 {[%clk 0:04:46.2]} 6... Nb4
{[%clk 0:03:54.8]} 7. Ngxe4 {[%clk 0:04:43]} 7... Bb7 {[%clk 0:03:52.7]} 8.
Nxf6+ {[%clk 0:04:38.6]} 8... Qxf6 {[%clk 0:03:52.6]} 9. a3 {[%clk 0:04:36.4]}
9... Nd5 {[%clk 0:03:36.3]} 10. Nxd5 {[%clk 0:04:33]} 10... Bxd5 {[%clk
0:03:36.2]} 11. Qc2 {[%clk 0:04:30.3]} 11... Bd6 {[%clk 0:03:31.2]} 12. e4
{[%clk 0:04:25.4]} 12... Qe6 {[%clk 0:03:09.2]} 13. d3 {[%clk 0:04:22.3]} 13...
O-O {[%clk 0:03:05.2]} 14. Be2 {[%clk 0:04:20.7]} 14... Bb3 {[%clk 0:02:57.9]}
15. Qc3 {[%clk 0:04:12.1]} 15... Be5 {[%clk 0:02:57.1]} 16. d4 {[%clk 0:04:11]}
16... Bf6 {[%clk 0:02:47.9]} 17. O-O {[%clk 0:04:06]} 17... c6 {[%clk
0:02:42.2]} 18. e5 {[%clk 0:04:03.9]} 18... Be7 {[%clk 0:02:39.8]} 19. bxc6
{[%clk 0:03:59.9]} 19... dxc6 {[%clk 0:02:39.7]} 20. f4 {[%clk 0:03:55.3]} 20...
Rab8 {[%clk 0:02:33.2]} 21. f5 {[%clk 0:03:51]} 21... Qd7 {[%clk 0:02:26.4]} 22.
f6 {[%clk 0:03:37.5]} 22... Bd8 {[%clk 0:02:20.6]} 23. Qg3 {[%clk 0:03:26.8]}
23... Qxd4+ {[%clk 0:02:09.9]} 24. Be3 {[%clk 0:03:24.8]} 1-0